Cogmind - Beta 13 @@@ ROGUE MODE // 2024.03.30 @ 20:18:35 Player: _An Result: Destroyed by S-10 Pest with Light Assault Rifle Performance ------------- Evolutions (0) 0 Regions Visited (3) 600 Robots Destroyed (24) 120 Value Destroyed (523) 523 Prototype IDs (0) 0 Alien Tech Used (0) 0 Bonus (70) 70 TOTAL SCORE: 1313 Bonus ------- Follower Combat Kills 70 Cogmind --------- Core Integrity 0/250 Matter 241/300 Energy 64/100 System Corruption 0% Temperature Cool (0) Movement Rolling (80) Location -10/Subcaves Parts ------- > --- POWER (1) -------- (None) > --- PROPULSION (2) --- Wheel > --- UTILITY (2) ------ Small Storage Unit Signal Interpreter > --- WEAPON (2) ------- Battle Rifle > --- INVENTORY (8) ---- Structural Scanner Visual Processing Unit Signal Interpreter Improved Terrain Scanner Grenade Launcher Mining Laser Peak State ------------ > --- POWER ------------ Ion Engine > --- PROPULSION ------- Light Treads Light Treads > --- UTILITY ---------- Small Storage Unit Improved Terrain Scanner > --- WEAPON ----------- Small Laser Particle Gun > --- INVENTORY -------- Ion Engine Light Ion Engine Visual Processing Unit Signal Interpreter Signal Interpreter Improved Terrain Scanner Grenade Launcher Mining Laser [Rating: 11] Favorites ----------- Power Ion Engine Engine Ion Engine Power Core Light Nuclear Core Propulsion Light Treads Treads Light Treads Wheel Wheel Utility Small Storage Unit Device Improved Terrain Scanner Storage Small Storage Unit Processor Signal Interpreter Weapon Small Laser Energy Gun Small Laser Ballistic Gun Heavy Assault Rifle Ballistic Cannon Light Cannon Special Weapon Flamer Build | -11 -10 -10 -10 ------- Run | Yrd Mat Min Sub Slots Evolved . | . . . . Power . | . . . . Propulsion . | . . . . Utility . | . . . . Weapon . | . . . . Parts Attached 20 | 7 1 6 6 Power 4 | 1 . 1 2 Engine 3 | 1 . 1 1 Core 1 | . . . 1 Reactor . | . . . . Propulsion 3 | 2 . . 1 Treads 2 | 2 . . . Leg . | . . . . Wheel 1 | . . . 1 Hover . | . . . . Flight . | . . . . Utility 4 | 2 . 2 . Device 2 | 1 . 1 . Storage 1 | 1 . . . Processor 1 | . . 1 . Hackware . | . . . . Protection . | . . . . Artifact . | . . . . Weapon 9 | 2 1 3 3 Energy Gun 4 | 2 1 1 . Energy Cannon . | . . . . Ballistic Gun 2 | . . 1 1 Ballistic Cannon 2 | . . 1 1 Launcher . | . . . . Special Weapon 1 | . . . 1 Impact Weapon . | . . . . Slashing Weapon . | . . . . Piercing Weapon . | . . . . Special Melee Weapon . | . . . . Unidentified Prototypes . | . . . . Parts Lost 8 | . . 2 6 Power 2 | . . 1 1 Propulsion 2 | . . . 2 Utility . | . . . . Weapon 4 | . . 1 3 Highest Loss Streak 4 | . . 2 4 To Critical Strikes . | . . . . Average Slot Usage (%) 95 | . 100 99 89 Engine 10 | . 14 13 5 Core 2 | . . . 7 Treads 24 | . 28 28 19 Device 5 | . 14 6 . Storage 14 | . 14 14 14 Processor 8 | . . 7 14 Energy Gun 13 | . 28 20 . Ballistic Gun 4 | . . 3 6 Ballistic Cannon 9 | . . 3 20 Naked Turns . | . . . . Heaviest Build 16 | 14 15 15 16 Greatest Support 40 | 40 40 40 40 Greatest Overweight (x) 5 | . . . 5 Average Overweight (x) . | . . . . Largest Inventory Capacity 8 | 8 8 8 8 Average Capacity 7 | 7 8 8 8 Most Carried 8 | 4 8 8 8 Average Carried 6 | 1 6 7 7 Final Capacity 8 | 8 8 8 8 Final Carried 8 | 3 8 7 6 Class Distribution -------------------- 100% | Mutant Dominant Class ---------------- Mutant | -10/Materials Mutant | -10/Mines Mutant | -10/Subcaves Resources | -11 -10 -10 -10 ----------- Run | Yrd Mat Min Sub Matter Collected 574 | 260 20 30 264 Remotely . | . . . . Salvage Created 602 | 142 181 144 135 Parts 46 | 15 11 6 14 Haulers Intercepted . | . . . . Recyclers Shooed . | . . . . Parts Field Recycled . | . . . . Retrieved Matter . | . . . . Parts Self-Destructed 13 | . . . 13 Prevented . | . . . . Kills | -11 -10 -10 -10 ------- Run | Yrd Mat Min Sub Combat Hostiles Destroyed 15 | . 5 3 7 Guns 8 | . 5 3 . Cannons 7 | . . . 7 Classes Destroyed 6 | 1 3 1 1 Tunneler 8 | 8 . . . Watcher 1 | . 1 . . Swarmer 5 | . 2 . 3 Grunt 5 | . 3 2 . Sentry 1 | . . 1 . Subdweller 4 | . . . 4 Best Kill Streak 3 | 3 2 2 2 Combat Bots Only 2 | . 2 2 2 Max Kills in Single Turn 1 | 1 1 1 1 Gunslinging . | . . . . Exploded . | . . . . Melee . | . . . . Uniques/NPCs Destroyed . | . . . . Combat | -11 -10 -10 -10 -------- Run | Yrd Mat Min Sub Hostile Shots Fired 118 | . 50 15 53 Missed 25 | . 10 3 12 Damage Taken 1219 | . 407 178 634 Core 256 | . 91 14 151 Absorbed by Shields . | . . . . Core Remaining (%) 100 | 100 . . . Volleys Fired 88 | 15 27 8 38 Largest 2 | 2 2 2 2 Hottest 105 | 90 105 105 100 Shots Fired 161 | 30 52 14 65 Gun 105 | 30 52 14 9 Cannon 53 | . . . 53 Launcher . | . . . . Special 3 | . . . 3 Kinetic 62 | . . . 62 Thermal 99 | 30 52 14 3 Explosive . | . . . . Electromagnetic . | . . . . Robot Hit Streak 11 | 10 11 5 8 Robot Miss Streak 6 | 2 6 1 3 Penetration Max . | . . . . Secondary Targets 3 | . 2 1 . Max Gunslinging Chain 1 | . 1 1 . Shots Hit Robots 100 | 20 26 11 43 Core Hits 35 | 8 10 6 11 Critical Kills . | . . . . Critical Parts Destroyed . | . . . . Critical Strikes 3 | . . 1 2 Burn 1 | . . 1 . Blast 2 | . . . 2 Melee Attacks . | . . . . Impact . | . . . . Slashing . | . . . . Piercing . | . . . . Sneak Attacks . | . . . . Combat Hostiles . | . . . . Follow-up Attacks . | . . . . Damage Inflicted 1381 | 236 343 134 668 Guns 761 | 236 343 134 48 Cannons 597 | . . . 597 Explosions . | . . . . Melee . | . . . . Ramming . | . . . . Kinetic 645 | . . . 645 Thermal 736 | 236 343 134 23 Explosive . | . . . . Electromagnetic . | . . . . Impact . | . . . . Slashing . | . . . . Piercing . | . . . . Highest Corruption . | . . . . Average Corruption . | . . . . Corruption Purged . | . . . . Corruption Blocked . | . . . . Overload Shots . | . . . . Overflow Damage . | . . . . Projectiles . | . . . . Explosions . | . . . . Melee . | . . . . Knockbacks 14 | . . . 14 Impact . | . . . . Kinetic 14 | . . . 14 Secondary . | . . . . Self-Inflicted Damage . | . . . . Shots . | . . . . Rammed . | . . . . Targets Rammed . | . . . . Kicked . | . . . . Crushed . | . . . . Highest Temperature 375 | 124 375 189 . Average Temperature 114 | 44 162 70 . Received Heat Transfer 279 | . 141 72 66 Effects 4 | . 4 . . Energy Bleed 2 | . 2 . . Short Circuit 2 | . 2 . . Siege Activations . | . . . . Robots Corrupted . | . . . . Combat Hostiles . | . . . . Parts Fried . | . . . . Impact Corruptions . | . . . . Robots Melted . | . . . . Combat Hostiles . | . . . . Parts Melted 8 | 1 4 2 1 Heat Transferred 2070 | 656 881 373 160 Parts Sabotaged . | . . . . Parts Stolen . | . . . . Parts Stripped . | . . . . Power Chain Reactions . | . . . . Alert | -11 -10 -10 -10 ------- Run | Yrd Mat Min Sub Peak Influence 198 | 40 198 126 . Initial 76 | . 26 76 . Average 56 | 14 97 54 . Maximum Alert Level . | . . . . Low Security (%) 100 | 100 100 100 . Level 1 . | . . . . Level 2 . | . . . . Level 3 . | . . . . Level 4 . | . . . . Level 5 . | . . . . High Security . | . . . . Max Security . | . . . . Squads Dispatched 1 | . 1 . . Investigation 1 | . 1 . . Extermination . | . . . . Reinforcement . | . . . . Assault . | . . . . Garrison . | . . . . Intercept . | . . . . Searches Triggered . | . . . . Construction Impeded . | . . . . Haulers Reinforced . | . . . . Active Scanning Responses . | . . . . Cargo Convoy Interrupts . | . . . . Stealth | -11 -10 -10 -10 --------- Run | Yrd Mat Min Sub Distress Signals 2 | . 2 . . Communications Jammed . | . . . . Distress Signals . | . . . . Times Spotted 31 | . 9 4 18 Peak Tracking Total 6 | . 4 2 6 Tactical Retreats 1 | . . . 1 Traps | -11 -10 -10 -10 ------- Run | Yrd Mat Min Sub Traps Triggered 2 | . . . 2 Indirectly . | . . . . Trap Hack Attempts . | . . . . Triggered . | . . . . Disarmed . | . . . . Reprogrammed . | . . . . Reused . | . . . . Traps Extracted . | . . . . Installed . | . . . . Triggered 2 | . . . 2 Machines | -11 -10 -10 -10 ---------- Run | Yrd Mat Min Sub Machines Disabled . | . . . . Max in Single Turn . | . . . . Machines Repaired . | . . . . Machines Dismantled . | . . . . Machines Sabotaged . | . . . . Overloaded Fab Kills . | . . . . Hacking | -11 -10 -10 -10 --------- Run | Yrd Mat Min Sub Machines Accessed 2 | . 1 . 1 Terminals 1 | . 1 . . Fabricators . | . . . . Repair Stations . | . . . . Recycling Units . | . . . . Scanalyzers . | . . . . Garrison Access . | . . . . Total Hacks 6 | . 4 . 2 Successful 3 | . 1 . 2 Failed 3 | . 3 . . Catastrophic . | . . . . Database Lockouts . | . . . . Manual 7 | . 4 . 3 Terminals 4 | . 4 . . Fabricators . | . . . . Repair Stations . | . . . . Recycling Units . | . . . . Scanalyzers . | . . . . Garrison Access . | . . . . Terminal Hacks 2 | . . . 2 Record 2 | . . . 2 Fabricator Hacks . | . . . . Repair Station Hacks . | . . . . Recycling Unit Hacks . | . . . . Scanalyzer . | . . . . Garrison Access Hacks . | . . . . Unauthorized Hacks 1 | . 1 . . Terminals 1 | . 1 . . Botnet 1 | . 1 . . Fabricators . | . . . . Repair Stations . | . . . . Recycling Units . | . . . . Scanalyzers . | . . . . Garrison Access . | . . . . Data Cores Recovered . | . . . . Used . | . . . . Hacking Detections 1 | . 1 . . Full Trace Events 1 | . 1 . . Feedback Events . | . . . . Feedback Blocked . | . . . . Robot Schematics Acquired . | . . . . Robots Built . | . . . . Authchips . | . . . . Time . | . . . . Total Robot Build Rating . | . . . . Part Schematics Acquired . | . . . . Parts Built . | . . . . Authchips . | . . . . Time . | . . . . Total Part Build Rating . | . . . . Parts Repaired . | . . . . Time . | . . . . Parts Recycled . | . . . . Recycled Matter . | . . . . Retrieved Matter . | . . . . Retrieved Components . | . . . . Parts Scanalyzed . | . . . . Part Schematics Acquired . | . . . . Parts Damaged . | . . . . Bothacking | -11 -10 -10 -10 ------------ Run | Yrd Mat Min Sub Used RIF Installer . | . . . . Robots Hacked . | . . . . Non-combat . | . . . . Combat . | . . . . Robot Hacks Applied . | . . . . Relay Couplers Released . | . . . . Fabnet Peak Effective % . | . . . . Robots Rewired . | . . . . Allies Hacked . | . . . . Hacks Repelled . | . . . . Allies | -11 -10 -10 -10 -------- Run | Yrd Mat Min Sub Total Allies 3 | . . 3 . Largest Group 3 | . . 3 3 Highest-Rated Group 40 | . . 40 40 Highest-Rated Ally 16 | . . 16 16 Total Orders . | . . . . Ally Attacks 38 | . . 9 29 Total Damage 373 | . . 125 248 Kills 3 | . . 1 2 Allies Corrupted . | . . . . Allies Melted . | . . . . Intel | -11 -10 -10 -10 ------- Run | Yrd Mat Min Sub Robot Analysis Total . | . . . . Derelict Logs Recovered 2 | . . 1 1 Drone Launches . | . . . . Drone Recoveries . | . . . . Exploration | -11 -10 -10 -10 ------------- Run | Yrd Mat Min Sub Turns Passed 2791 | 316 384 1148 943 Spaces Moved 1446 | 164 187 609 486 Core 34 | 4 . . 30 Treads 1408 | 160 187 609 452 Legs . | . . . . Wheels 4 | . . . 4 Hover . | . . . . Flight . | . . . . Fastest Speed 50 | 50 160 160 80 Average Speed 162 | 157 160 160 167 Slowest Speed 300 | 160 160 160 300 Overloaded Moves . | . . . . Propulsion Burnouts . | . . . . Robots Hopped . | . . . . Cave-ins Triggered . | . . . . Exploration Rate (%) 42 | 9 35 82 45 Regions Visited 3 Branch Regions 2 Pre-discovered Areas . | . . . . Known Exits Taken 1 | . . 1 . Unknown Exits Taken 2 | 1 1 . . Scrap Searched 6 | . . 2 4 Spaces Dug . | . . . . Terrain Destroyed . | . . . . Melee . | . . . . Projectile . | . . . . AOE . | . . . . Terrain Rammed . | . . . . Walls Destroyed . | . . . . Machines Disabled . | . . . . Actions | -11 -10 -10 -10 --------- Run | Yrd Mat Min Sub Total 1723 | 189 220 769 545 Wait 148 | . . 141 7 Move 1443 | 163 186 608 486 Hop . | . . . . Pick Up 12 | 4 5 1 2 Fast Attach 15 | 6 1 4 4 Attach 5 | 1 . 2 2 Detach 3 | . . 1 2 Swap . | . . . . Drop 9 | . 1 4 4 Fire 88 | 15 27 8 38 Melee . | . . . . Ram . | . . . . Kick . | . . . . Crush . | . . . . Escape Stasis . | . . . . Rewire . | . . . . Trap . | . . . . Miscellaneous . | . . . . Route ------- -11/Scrapyard -10/Materials (discovered 2 exits: [*Min] / Sub) -10/Mines (discovered 2 exits: *Mat / *Sub) -10/Subcaves (discovered 2 exits: *Mat x2) History --------- Turn | Location | Event 5 | -11/Scrapyard | Discovered new exit (range 15) 317 | -11/Scrapyard | Entered Materials 330 | -10/Materials | Build established: Mutant 402 | -10/Materials | Discovered new exit (range 14) 638 | -10/Materials | Discovered new exit (range 11) 701 | -10/Materials | Entered Mines 851 | -10/Mines | YI-UF0 nonchalantly dropped a Grenade Launcher on the ground 893 | -10/Mines | Found a hidden stash of uninstalled traps 1246 | -10/Mines | Discovered new exit (range 13) 1292 | -10/Mines | Identified exit to Subcaves 1411 | -10/Mines | Assisted by bots powering up and referring to "LRC-V3" 1416 | -10/Mines | Discovered new exit (range 13) 1435 | -10/Mines | Identified exit to Materials 1849 | -10/Mines | Entered Subcaves 1849 | -10/Subcaves | Accompanied by 3 allies 1849 | -10/Subcaves | Discovered new exit (range 11) 1864 | -10/Subcaves | Identified exit to Materials 1927 | -10/Subcaves | Learned Materials trap positions 2343 | -10/Subcaves | Core integrity fell below 50% 2347 | -10/Subcaves | Visited Clippyterm 2352 | -10/Subcaves | Learned Research machine intel 2645 | -10/Subcaves | Discovered exit to Materials (range 2) 2785 | -10/Subcaves | Core integrity fell below 20% 2792 | -10/Subcaves | Destroyed by S-10 Pest with Light Assault Rifle Last Messages --------------- Lgt. Treads destroyed. Triggered Shrapnel Trap. An expanding cloud of shrapnel blasts out in all directions. 6E-ZNV(R) Sub. Power Source blasted off. 6E-ZNV(R) knocked back. 6E-ZNV(R) affixes Scrap Shield Fragment to Scrap Shield. 6E-ZNV(R) knocked back. Battle Cannon destroyed. 6E-ZNV(R) knocked back. Lgt. Cannon destroyed. 6E-ZNV(R) destroyed. Lgt. Nuclear Core destroyed. Acquired Wheel. Flight Unit melted. S-10 Pest destroyed. Flight Unit fries itself beyond repair. Lgt. Ion Engine fries itself beyond repair. Flamer destroyed. Map ----- +----------------------------------------------------+ | ?????????????????????????????????????????????????? | | ?????????????????????????????????????????????????? | | ?????????????????????????????????????????????????? | | ?????????????????????????????????????????????????? | | ?????????????????????????????????????????????????? | | ?????????????????????????????????????????????????? | | ?????????????????????????????????????????????????? | | ?????????????????????????????????????????????????? | | ?????????????????????????????????????????????????? | | ?????????????????????????????????????????????????? | | ?????????????????????????????????????????????????? | | ?????????????????????????????????????????????????? | | ?????????????????????????????????????????????????? | | ?????????????????????????#??????????????????###??? | | ????????????????????????? ##???????? ??????## ### | | ????????????????????????? ### ???? ?????# | | ?????????????????????#??? ????# ?????? % % | | ????????????????????? ##?# ?????# ?????? # | | ????????????????????? ## ?????? ??### ?# | | ????????????????????? ????#### #?## ??# | | ?????????????????????#" #????# ## #?# #??# | | ????????????????????##"" ###?## % #??# #### | | ????????????????????#|"" ### #??# ##?# | | ????????????????????#*"" ## ##??# ### | | ????????????????????#%"" ## #### ^# | | ???????????# ???????#" ""@ #?# % ## # | | ????????????# ##[&*"%s ##??# # | | ?????????????# &!%* s ##???# ^ | | ??????? &&! s #####^ | | ??????? %= #### # | | ????????## #### ####??## #" " | | ??????????????# ???????#### ^^##" """ | | ????????????? ??????????# ## ^####" | | ??????????? ?????????# ####### #??#### | | ?????????? #### ?????????# %##?????####?????? | | ?????????? ???? ?????????#####???????????????? | | ?????????? ???? ?????????????????????????????? | | ???????????????? ??????????????????????????????? | | ???????????????" ??????????????????????????????? | | ???????????????" "??????????????????????????????? | | ???????????????"?????????????????????????????????? | | ?????????????????????????????????????????????????? | | ?????????????????????????????????????????????????? | | ?????????????????????????????????????????????????? | | ?????????????????????????????????????????????????? | | ?????????????????????????????????????????????????? | | ?????????????????????????????????????????????????? | | ?????????????????????????????????????????????????? | | ?????????????????????????????????????????????????? | | ?????????????????????????????????????????????????? | +----------------------------------------------------+ Best States ------------- Heat Dissipation 35 Energy Generation 15 Energy Capacity 250 Matter Stores 300 Matter Capacity 300 Sight Range 16 Terrain Scan Range 16 Terrain Scan Density 10 Evasion (%) 44 Recoil Reduction 2 Item Schematics ----------------- None Robot Schematics ------------------ None Fabricated ------------ Nothing Alien Tech Used ----------------- None Achievements -------------- None Challenges ------------ None Game ------ Seed SiegeDrainedSink Manual? 0 Play Time 00:15:14 Cumulative 1.9 hours Start 2024.03.30 @ 20:02:04 End 2024.03.30 @ 20:18:35 Sessions 1 Manual Loads 0 Difficulty Rogue Special Mode None Game No. 7 Rogue 7 Adventurer 0 Explorer 0 Win Type - Total 0 Types 0/0/0/0/0/0/0/0/0 Lore% 1 Gallery% 4 Achievement% 5 Wizard Run 0 Options --------- Layout 1 ASCII 0 Keyboard 1 Movement Numpad Keybinds 0 Fullscreen 1 Font 32/SmallcapsGlow Map View 50x35 Zoom Use 0% Tactical HUD 0 Map Filters NONE Filters NONE Steam 1 RUN: 8a1d2245-d384-47e6-ad3c-8de93a748eb7